Cogmind - Beta 17 @@@ ROGUE MODE // 2026.07.12 @ 17:06:20 Player: ExAliquo Result: Destroyed by NQ-6TC(R) with Subdweller Machine Gun Performance ------------- Evolutions (0) 0 Regions Visited (2) 400 Robots Destroyed (29) 145 Value Destroyed (629) 629 Prototype IDs (0) 0 Alien Tech Used (0) 0 Bonus (0) 0 TOTAL SCORE: 1174 Bonus ------- None Cogmind --------- Core Integrity 0/250 Matter 4/300 Energy 100/100 System Corruption 6% Temperature Cool (0) Movement Treading (240) Ox1 Location -10/Subcaves Parts ------- > --- POWER (1) -------- (None) > --- PROPULSION (2) --- Light Treads Subdweller Monowheel > --- UTILITY (2) ------ Large Storage Unit > --- WEAPON (2) ------- Light Cannon Light Cannon > --- INVENTORY (15) --- Light Treads Spiked Treads Aluminum Leg Wheel Large Storage Unit Medium Matter Pod (94) Seismic Detector Battle Rifle Light Cannon Light Cannon Light Cannon Light Cannon Grenade Launcher Peak State ------------ > --- POWER ------------ Light Ion Engine > --- PROPULSION ------- Light Treads Subdweller Monowheel > --- UTILITY ---------- Large Storage Unit Improved Terrain Scanner > --- WEAPON ----------- Light Cannon Light Cannon > --- INVENTORY -------- Light Treads Spiked Treads Aluminum Leg Wheel Large Storage Unit Medium Matter Pod Seismic Detector Battle Rifle Light Cannon Light Cannon Light Cannon Light Cannon Light Cannon Grenade Launcher [Rating: 11] Favorites ----------- Power Light Ion Engine Engine Light Ion Engine Propulsion Wheel Treads Light Treads Leg Aluminum Leg Wheel Wheel Utility Large Storage Unit Device Seismic Detector Storage Large Storage Unit Protection Light Armor Plating Weapon Light Cannon Energy Gun EM Pulse Gun Ballistic Gun Light Assault Rifle Ballistic Cannon Light Cannon Launcher Grenade Launcher Build | -11 -10 -10 ------- Run | Yrd Mat Sub Slots Evolved . | . . . Power . | . . . Propulsion . | . . . Utility . | . . . Weapon . | . . . Parts Attached 21 | 2 11 8 Power 1 | . . 1 Engine 1 | . . 1 Core . | . . . Reactor . | . . . Propulsion 6 | . 3 3 Treads 2 | . . 2 Leg . | . . . Wheel 4 | . 3 1 Hover . | . . . Flight . | . . . Utility 5 | 1 3 1 Device 3 | 1 1 1 Storage 1 | . 1 . Processor . | . . . Hackware . | . . . Protection 1 | . 1 . Artifact . | . . . Weapon 9 | 1 5 3 Energy Gun 1 | 1 . . Energy Cannon . | . . . Ballistic Gun 2 | . 2 . Ballistic Cannon 4 | . 2 2 Launcher 2 | . 1 1 Special Weapon . | . . . Impact Weapon . | . . . Slashing Weapon . | . . . Piercing Weapon . | . . . Special Melee Weapon . | . . . Unidentified Prototypes . | . . . Parts Lost 6 | . . 6 Power 2 | . . 2 Propulsion . | . . . Utility 2 | . . 2 Weapon 2 | . . 2 Highest Loss Streak 3 | . . 3 To Critical Strikes . | . . . Average Backups 13 | 6 13 14 Power . | 1 1 . Propulsion 3 | 4 3 3 Utility 4 | . 5 3 Weapon 4 | 1 3 7 Tool/Special . | . . . Unused Backups 24 | 5 10 9 Power 2 | 1 . 1 Propulsion 4 | 2 1 1 Utility 8 | 1 5 2 Weapon 10 | 1 4 5 Tool/Special . | . . . Average Slot Usage (%) 98 | . 99 95 Engine 12 | . 14 10 Treads 5 | . . 15 Wheel 21 | . 27 12 Device 11 | . 13 7 Storage 14 | . 14 14 Protection 2 | . . 5 Energy Gun 4 | . 7 . Ballistic Gun 4 | . 7 . Ballistic Cannon 16 | . 12 25 Launcher 1 | . . 2 Peak Build Rating 11 | 8 8 11 Average Rating 8 | 6 7 8 On Entrance 7 | 6 8 8 Avg Prop Armor Cover (%) 9 | . . 9 Naked Turns . | . . . Heaviest Build 32 | 12 30 32 Greatest Support 40 | 20 26 40 Greatest Overweight (x) 3 | . 1 3 Average Overweight (x) 1 | . . 1 Largest Inventory Capacity 15 | 8 15 15 Average Capacity 14 | 8 14 15 Most Carried 15 | 8 15 15 Average Carried 13 | 6 14 14 Final Capacity 15 | 8 15 15 Final Carried 15 | 8 15 13 Class Distribution -------------------- 100% | Mutant Dominant Class ---------------- Mutant | -10/Materials Mutant | -10/Subcaves Resources | -11 -10 -10 ----------- Run | Yrd Mat Sub Matter Collected 697 | 220 315 162 Remotely . | . . . Salvage Created 542 | 40 364 138 Parts 41 | 6 21 14 Haulers Intercepted . | . . . Recyclers Shooed . | . . . Parts Field Recycled . | . . . Retrieved Matter . | . . . Parts Self-Destructed 5 | . . 5 Prevented . | . . . Parts Restored . | . . . Kills | -11 -10 -10 ------- Run | Yrd Mat Sub Combat Hostiles Destroyed 20 | . 12 8 Guns 3 | . 3 . Cannons 9 | . 4 5 AOE 8 | . 5 3 Classes Destroyed 9 | 1 6 2 Worker 1 | . 1 . Tunneler 2 | 2 . . Recycler 1 | . 1 . Operator 1 | . 1 . Turret 2 | . . 2 Watcher 2 | . 2 . Swarmer 10 | . 6 4 Grunt 6 | . 6 . Subdweller 4 | . . 4 Best Kill Streak 6 | 1 6 4 Combat Bots Only 5 | . 5 4 Max Kills in Single Turn 2 | 1 2 2 Gunslinging . | . . . Exploded 2 | . 2 2 Melee . | . . . Uniques/NPCs Destroyed . | . . . Combat | -11 -10 -10 -------- Run | Yrd Mat Sub Hostile Shots Fired 114 | . 35 79 Missed 27 | . 10 17 Hits 87 | . 25 62 Projectile 87 | . 25 62 AOE 1 | . . 1 Critical Strikes 5 | . 2 3 Damage Taken 1268 | . 278 990 Core 270 | . 52 218 Absorbed by Shields . | . . . Core Remaining (%) 100 | 100 . . Volleys Fired 74 | 12 27 35 Largest 2 | 1 2 2 Hottest 60 | 40 60 60 Shots Fired 114 | 12 48 54 Gun 31 | 12 19 . Cannon 69 | . 24 45 Launcher 14 | . 5 9 Special . | . . . Kinetic 78 | . 33 45 Thermal . | . . . Explosive 14 | . 5 9 Electromagnetic 22 | 12 10 . Robot Hit Streak 13 | 3 6 13 Robot Miss Streak 5 | 4 3 5 Penetration Max . | . . . Secondary Targets 1 | . 1 . Max Gunslinging Chain 1 | . 1 . Shots Hit Robots 58 | 6 25 27 Core Hits 38 | 2 19 17 Critical Kills . | . . . Critical Parts Destroyed . | . . . Critical Strikes 1 | . 1 . Corrupt 1 | . 1 . Melee Attacks . | . . . Impact . | . . . Slashing . | . . . Piercing . | . . . Sneak Attacks . | . . . Combat Hostiles . | . . . Follow-up Attacks . | . . . Damage Inflicted 1724 | 142 867 715 Guns 223 | 108 115 . Cannons 645 | . 214 431 Explosions 856 | 34 538 284 Melee . | . . . Ramming . | . . . Kinetic 671 | . 240 431 Thermal 78 | 34 44 . Explosive 778 | . 494 284 Electromagnetic 197 | 108 89 . Impact . | . . . Slashing . | . . . Piercing . | . . . Highest Corruption 6 | . 6 6 Average Corruption 4 | . 3 6 Corruption Purged . | . . . Corruption Blocked . | . . . Effects 14 | . 4 10 Message Errors 1 | . 1 . Matter Fused 3 | . . 3 Energy Discharges 5 | . 2 3 Data Loss (minor) 3 | . 1 2 Data Loss (major) 1 | . . 1 Alerts 1 | . . 1 Overload Shots . | . . . Overflow Damage 33 | . 15 18 Projectiles . | . . . Explosions 33 | . 15 18 Melee . | . . . Knockbacks 7 | . 2 5 Impact . | . . . Kinetic 7 | . 2 5 Secondary . | . . . Self-Inflicted Damage 35 | . 4 31 Shots 2 | . 1 1 Rammed . | . . . Targets Rammed . | . . . Kicked . | . . . Crushed . | . . . Highest Temperature 282 | . 102 282 Average Temperature 63 | . 36 177 Received Heat Transfer 590 | . 135 455 Siege Activations . | . . . Martial Activations . | . . . Shielding Activations . | . . . Robots Disrupted . | . . . Combat Hostiles . | . . . Robots Corrupted . | . . . Combat Hostiles . | . . . Parts Fried 1 | 1 . . Impact Corruptions . | . . . Robots Melted . | . . . Combat Hostiles . | . . . Parts Melted . | . . . Heat Transferred 100 | 50 50 . Parts Sabotaged . | . . . Parts Stolen . | . . . Parts Stripped . | . . . Power Chain Reactions 2 | 1 1 . Alert | -11 -10 -10 ------- Run | Yrd Mat Sub Maximum Alert Level 1 | . 1 . Low Security (%) 68 | 100 64 . Level 1 31 | . 35 . Level 2 . | . . . Level 3 . | . . . Level 4 . | . . . Level 5 . | . . . High Security . | . . . Max Security . | . . . Peak Influence 259 | 5 259 . Initial . | . . . Average 104 | 2 117 . Influence Increases 683 | 10 388 285 Destroy 0b10 Robot/C 360 | . 240 120 Destroy 0b10 Robot/NC 35 | 10 25 . Destroy Leader 54 | . 54 . Successful Hack 12 | . 12 . Disable Machine 15 | . 15 . Destroy Structure 27 | . 27 . Partial Spotted 15 | . 15 . Lose Combat Pursuer 165 | . . 165 Influence Decreases 516 | 10 172 334 Entered New Map 104 | . . 104 Time Decay 352 | 10 172 170 Lost Part 60 | . . 60 Squads Dispatched 1 | . 1 . Investigation . | . . . Extermination . | . . . Reinforcement 1 | . 1 . Assault . | . . . Garrison . | . . . Intercept . | . . . Searches Triggered . | . . . Construction Impeded . | . . . Haulers Reinforced . | . . . Active Scanning Responses . | . . . Cargo Convoy Interrupts . | . . . Stealth | -11 -10 -10 --------- Run | Yrd Mat Sub Distress Signals 3 | . 3 . Communications Jammed . | . . . Distress Signals . | . . . Times Spotted 33 | . 16 17 Peak Tracking Total 5 | . 5 4 Tactical Retreats 4 | . . 4 Traps | -11 -10 -10 ------- Run | Yrd Mat Sub Traps Triggered 3 | . 3 . Indirectly . | . . . Trap Hack Attempts . | . . . Triggered . | . . . Disarmed . | . . . Reprogrammed . | . . . Reused . | . . . Traps Extracted . | . . . Installed . | . . . Triggered . | . . . Machines | -11 -10 -10 ---------- Run | Yrd Mat Sub Machines Disabled 3 | . 1 2 Max in Single Turn 1 | . 1 1 Machines Repaired . | . . . Machines Dismantled . | . . . Machines Sabotaged . | . . . Overloaded Fab Kills . | . . . Hacking | -11 -10 -10 --------- Run | Yrd Mat Sub Machines Accessed 4 | . 4 . Terminals 3 | . 3 . Fabricators . | . . . Repair Stations . | . . . Recycling Units 1 | . 1 . Scanalyzers . | . . . Garrison Access . | . . . Total Hacks 11 | . 11 . Successful 4 | . 4 . Failed 7 | . 7 . Catastrophic . | . . . Database Lockouts . | . . . Manual 1 | . 1 . Terminals 8 | . 8 . Fabricators . | . . . Repair Stations . | . . . Recycling Units 3 | . 3 . Scanalyzers . | . . . Garrison Access . | . . . Terminal Hacks 2 | . 2 . Surveillance Status 1 | . 1 . Zone Layout 1 | . 1 . Fabricator Hacks . | . . . Repair Station Hacks . | . . . Recycling Unit Hacks 2 | . 2 . Process 1 | . 1 . Retrieve Matter 1 | . 1 . Scanalyzer . | . . . Garrison Access Hacks . | . . . Unauthorized Hacks . | . . . Terminals . | . . . Fabricators . | . . . Repair Stations . | . . . Recycling Units . | . . . Scanalyzers . | . . . Garrison Access . | . . . Data Cores Recovered . | . . . Used . | . . . Hacking Detections 3 | . 3 . Full Trace Events . | . . . Feedback Events . | . . . Feedback Blocked . | . . . Robot Schematics Acquired . | . . . Robots Built . | . . . Authchips . | . . . Time . | . . . Total Robot Build Rating . | . . . Part Schematics Acquired . | . . . Parts Built . | . . . Authchips . | . . . Time . | . . . Total Part Build Rating . | . . . Part Studies Acquired . | . . . Parts Repaired . | . . . Time . | . . . Parts Recycled . | . . . Recycled Matter 79 | . 79 . Retrieved Matter 79 | . 79 . Retrieved Components . | . . . Parts Scanalyzed . | . . . Part Schematics Acquired . | . . . Parts Damaged . | . . . Bothacking | -11 -10 -10 ------------ Run | Yrd Mat Sub Used RIF Installer . | . . . Robots Hacked . | . . . Non-combat . | . . . Combat . | . . . Robot Hacks Applied . | . . . Relay Couplers Released . | . . . Fabnet Peak Effective % . | . . . Robots Rewired . | . . . Allies Hacked . | . . . Hacks Repelled . | . . . Allies | -11 -10 -10 -------- Run | Yrd Mat Sub Total Allies . | . . . Largest Group . | . . . Highest-Rated Group . | . . . Highest-Rated Ally . | . . . Total Orders . | . . . Ally Attacks . | . . . Total Damage . | . . . Kills . | . . . Allies Corrupted . | . . . Allies Melted . | . . . Intel | -11 -10 -10 ------- Run | Yrd Mat Sub Active Infowar (turns) 816 | 10 618 188 Terrain 164 | . . 164 Seismic 652 | 10 618 24 Robot Analysis Total . | . . . Derelict Logs Recovered . | . . . Drone Launches . | . . . Drone Recoveries . | . . . Exploration | -11 -10 -10 ------------- Run | Yrd Mat Sub Turns Passed 1102 | 81 662 359 Spaces Moved 696 | 43 460 193 Core . | . . . Treads 14 | . . 14 Legs 54 | 43 11 . Wheels 628 | . 449 179 Hover . | . . . Flight . | . . . Fastest Speed 95 | 120 95 95 Average Speed 106 | 120 100 116 Slowest Speed 240 | 120 120 240 Overloaded Moves . | . . . Propulsion Burnouts . | . . . Robots Hopped . | . . . Potential Cave-ins . | . . . Cave-ins Triggered . | . . . Exploration Rate (%) 28 | 3 62 21 Regions Visited 2 Branch Regions 1 Pre-discovered Areas . | . . . Known Exits Taken . | . . . Unknown Exits Taken 2 | 1 1 . Scrap Searched . | . . . Spaces Dug 1 | . . 1 Terrain Destroyed 50 | 2 28 20 Melee . | . . . Projectile 1 | . . 1 AOE 49 | 2 28 19 Terrain Rammed . | . . . Walls Destroyed . | . . . Machines Disabled . | . . . Actions | -11 -10 -10 --------- Run | Yrd Mat Sub Total 942 | 59 616 267 Wait 98 | 1 80 17 Move 694 | 42 459 193 Hop . | . . . Pick Up 22 | 2 18 2 Fast Attach 4 | 1 2 1 Attach 5 | . . 5 Detach 1 | . . 1 Swap 26 | 1 13 12 Drop 18 | . 17 1 Fire 74 | 12 27 35 Melee . | . . . Ram . | . . . Kick . | . . . Crush . | . . . Escape Stasis . | . . . Rewire . | . . . Trap . | . . . Miscellaneous . | . . . Route ------- -11/Scrapyard -10/Materials (discovered 4 exits: [*Mat] / [*Min x2] / [*Sub]) -10/Subcaves (discovered 1 exit: [*Rec]) History --------- Turn | Location | Event 1 | -11/Scrapyard | Discovered new exit (range 3) 82 | -11/Scrapyard | Entered Materials 272 | -10/Materials | Discovered new exit (range 15) 310 | -10/Materials | Build established: Mutant 429 | -10/Materials | Discovered new exit (range 12) 647 | -10/Materials | Discovered new exit (range 16) 731 | -10/Materials | Discovered new exit (range 4) 744 | -10/Materials | Entered Subcaves 924 | -10/Subcaves | Discovered new exit (range 10) 949 | -10/Subcaves | Ambushed by Subdweller buried in earth 1024 | -10/Subcaves | Core integrity fell below 50% 1084 | -10/Subcaves | Core integrity fell below 20% 1103 | -10/Subcaves | Destroyed by NQ-6TC(R) with Subdweller Machine Gun Last Messages --------------- 01042_ Subatomizers dissect the Sub. Monowheel. 01042_ H9-UUW(R) destroyed. 01052_ Subatomizers dissect the Sub. Monowheel. 01057_ Acquired 23 matter. 01061_ Acquired Sub. Monowheel. 01062_ Acquired 3 matter. 01063_ Acquired 31 matter. 01064_ Subatomizers dissect the Sub. Optics. 01066_ Acquired 1 matter. 01073_ System corrupted: Matter fused (-5). 01074_ Subatomizers dissect the Disposable Heat Sink. 01074_ Imp. Terrain Scanner destroyed. 01078_ NQ-6TC(R) knocked back. 01089_ Subatomizers dissect the Disposable Heat Sink. 01090_ Lgt. Cannon destroyed. 01092_ Lgt. Ion Engine destroyed. 01097_ System corrupted: IFF burst signal emitted. 01098_ NQ-6TC(R) knocked back. 01100_ Subatomizers dissect the Disposable Heat Sink. 01101_ NQ-6TC(R) knocked back. Map ----- +----------------------------------------------------+ | ?????????????????????????????????????????## ## | | ????????????????????????????????????????## ### | | ??????????????????????????????????????#?# #### | | ?????????????????????????????????######### #??? | | ?????????????????????????????????#""" " ##?? | | ???????????????????????????#?????#" #### | | ??????????????????????????? #????# # | | ?????????????????????? ??? ???## # | | ?????????????????????????? #??#< # | | ??????????????????????????# ??##" ## | | ??????????????????????????# #???# ##? | | ?????????????????????????## #???# # #?? | | ?????????????????????????# ???#""" " ## #?? | | ?????????????????????????## ############## #?? | | ?????????????????????????# ## ;"""" ##? | | ??????????????????????????# #? | | ??????????????????????##### ###? | | ????????????????????### "" #??? | | ????????????????????# "" #??? | | ????????????????????# ""# ##??? | | ????????????????????# &&! "### #???? | | ????????????????????# ## ! ! ##? #??? | | ????????????????# ??## ## #?# #??? | | ???????????????##??????### #########? #??# | | ???????????????# "## #????????? #??? | | ?????????????????????#" @ #?????#?? ####??? | | ?????????????????????## #????? ##?????? | | ?????????????????????" ### #### ???????? | | ???????????????????" " % ?### #??# ???????? | | ????????????????? ""# RR???? #?# ???????? | | ???????????????? ## ????# ## ???????? | | ????????????????? ??#" ??????###? ???????? | | ?????????????????????#""??????????? ??????????? | | ?????????????????????# "????????????## ??????????? | | ?????????????????????##"?????????????????????????? | | ?????????????????????#???????????#???????????????? | | ?????????????????????????????????????????????????? | | ?????????????????????????????????????????????????? | | ?????????????????????????????#???????????????????? | | ?????????????????????????????????????????????????? | | ?????????????????????????????????????????????????? | | ?????????????????????????????????????????????????? | | ?????????????????????????????????????????????????? | | ?????????????????????????????????????????????????? | | ?????????????????????????????????????????????????? | | ?????????????????????????????????????????????????? | | ?????????????????????????????????????????????????? | | ?????????????????????????????????????????????????? | | ?????????????????????????????????????????????????? | | ?????????????????????????????????????????????????? | +----------------------------------------------------+ Best States ------------- Heat Dissipation 25 Energy Generation 10 Energy Capacity 125 Matter Stores 300 Matter Capacity 300 Sight Range 16 Terrain Scan Range 16 Terrain Scan Density 10 Armor Coverage 150 Evasion (%) 55 Recoil Reduction 2 Item Schematics ----------------- None Robot Schematics ------------------ None Fabricated ------------ Nothing Repaired ---------- Nothing Studied --------- None Alien Tech Used ----------------- None Achievements -------------- Do Not Disturb Challenges ------------ None Game ------ Seed ForceReinforcedNetwork Manual? 0 Play Time 00:15:11 Cumulative 53.9 hours Start 2026.07.12 @ 16:53:13 End 2026.07.12 @ 17:06:20 Sessions 1 Manual Loads 0 Difficulty Rogue Special Mode None Game No. 99 Rogue 99 Adventurer 0 Explorer 0 Win Type - Total 1 Types 1/0/0/0/0/0/0/0/0/0 Lore% 41 Gallery% 47 Achievement% 43 Wizard Run 0 Options --------- Layout 0 ASCII 0 Keyboard 0 Movement Numpad Keybinds 0 Fullscreen 1 Font 18/SmallcapsGlow Map View 76x50 Zoom Use 0% Tactical HUD 1 Map Filters NONE Filters NONE Steam X RUN: c54c4204-c987-4901-89d4-692d5a5ef2b6